fUST/lending_fUST_20250620
["ID","MTS","AMOUNT","RATE_DAILY","PERIOD"]
[366645439,1750362634714,-238.15859036,0.0002398,30]
[366645440,1750362634724,-500.0,0.00023988,2]
[366645441,1750362634734,-212.0,0.0002399,2]
[366645442,1750362634743,-206.0,0.0002399,2]
[366645443,1750362634753,-207.0,0.0002399,2]
[366645444,1750362634762,-151.0,0.00023992,7]
[366645445,1750362634772,-460.0,0.00023993,2]
[366645446,1750362634782,-47847.53963601,0.00023995,7]
[366645447,1750362634791,-152.236565,0.00023995,7]
[366645448,1750362634800,-151.0,0.00023995,7]
[366645449,1750362634809,-151.0,0.00023995,7]
[366645450,1750362634818,-154.400037,0.00023995,7]
[366645451,1750362634828,-154.400037,0.00023995,7]
[366645452,1750362634836,-952.25392472,0.00024,2]
[366645453,1750362634845,-6927.07672192,0.00024,2]
[366645454,1750362634855,-12544.68530873,0.00024,7]
[366645455,1750362634865,-5309.6393307,0.00024,30]
[366645456,1750362634874,-36455.0414068,0.00024,3]
[366645457,1750362634885,-10000.0,0.00024,7]
[366645458,1750362634894,-2779.82,0.00024,5]
[366645459,1750362634904,-2602.0,0.00024,2]
[366645460,1750362634913,-1395000.0,0.00024,2]
[366645461,1750362634923,-19222.44685738,0.00024,2]
[366645462,1750362634933,-65621.00763926,0.00024,2]
[366645463,1750362634942,-1686.8352254,0.00024,2]
[366645464,1750362634951,-10110.86216619,0.00024,2]
[366645465,1750362634960,-9670.21038204,0.00024,2]
[366645466,1750362634970,-10065.87472929,0.00024,2]
[366645467,1750362634980,-94544.10126187,0.00024,2]
[366645468,1750362634989,-451.70843285,0.00024,2]
[366645469,1750362634999,-213.47708638,0.00024,3]
[366645470,1750362635009,-1500.0,0.00024,2]
[366645471,1750362635018,-1500.0,0.00024,2]
[366645472,1750362635028,-1500.0,0.00024,2]
[366645473,1750362635039,-1500.0,0.00024,2]
[366645474,1750362635048,-1500.0,0.00024,2]
[366645475,1750362635058,-1500.0,0.00024,2]
[366645476,1750362635068,-1500.0,0.00024,2]
[366645477,1750362635077,-1500.0,0.00024,2]
[366645478,1750362635086,-171982.2800389,0.00024,10]
[366645479,1750362635096,-160.0,0.00024,3]
[366645480,1750362635105,-230.0259007,0.00024,7]
[366645481,1750362635115,-230.0259007,0.00024,10]
[366645482,1750362635125,-836.1357872,0.00024,7]
[366645483,1750362635136,-836.1357872,0.00024,10]
[366645484,1750362635145,-836.1357872,0.00024,3]
[366645485,1750362635155,-315.52658788,0.00024,10]
[366645486,1750362635165,-6121.0,0.00024,2]
[366645487,1750362635174,-30838.53115514,0.00024,2]
[366645488,1750362635184,-3000.00000099,0.00024,5]
[366645489,1750362635193,-9023.95984531,0.00024,14]
[366645490,1750362635203,-1311.43,0.00024,7]
[366645491,1750362635212,-3528.74,0.00024,7]
[366645492,1750362635222,-2000.0,0.00024,4]
[366645493,1750362635232,-113223.31078969,0.00024,7]
[366645494,1750362635242,-51331.85700135,0.00024,7]
[366645495,1750362635252,-6808.0,0.00024,2]
[366645496,1750362635261,-16988.18273763,0.00024,2]
[366645497,1750362635271,-152.236565,0.00024,7]
[366645498,1750362635281,-16442.99352113,0.00024,30]
[366645499,1750362635290,-152.236568,0.00024,7]
[366645500,1750362635300,-292.357062,0.00024,7]
[366645501,1750362635310,-112520.67,0.00024,7]
[366645502,1750362635319,-106856.66,0.00024,2]
[366645503,1750362635329,-193.183107,0.00024,7]
[366645504,1750362635338,-154.400037,0.00024,7]
[366645505,1750362635347,-154.400037,0.00024,7]
[366645506,1750362635357,-154.400037,0.00024,7]
[366645507,1750362635375,-154.400037,0.00024,7]
[366645508,1750362635386,-154.400037,0.00024,7]
[366645509,1750362635396,-154.400037,0.00024,7]
[366645510,1750362635406,-154.400037,0.00024,7]
[366645511,1750362635416,-154.40003037,0.00024,7]
[366645512,1750362635426,-158.47,0.00024,2]
[366645513,1750362635436,-700.0,0.0002402,2]
[366645514,1750362635446,-9055.99990293,0.00024029,2]
[366645515,1750362635455,-788.0,0.00024033,2]
[366645516,1750362635465,-394.31210505,0.00024038,10]
[366645517,1750362635474,-500.0,0.0002404,2]
[366645518,1750362635485,-500.0,0.00024066,2]
[366645519,1750362635499,-788.0,0.00024086,2]
[366645520,1750362635508,-1822.55,0.000241,2]
[366645521,1750362635518,-1500.0,0.000241,2]
[366645522,1750362635528,-1500.0,0.000241,2]
[366645523,1750362635538,-460.0,0.00024109,6]
[366645524,1750362635550,-700.0,0.00024135,2]
[366645525,1750362635560,-394.31210505,0.00024141,10]
[366645526,1750362635571,-9055.99990293,0.00024159,2]
[366645527,1750362635582,-168.0,0.00024169,2]
[366645528,1750362635592,-500.0,0.0002419,2]
[366645529,1750362635602,-3715.07538342,0.000242,2]
[366645530,1750362635611,-168.0,0.00024224,2]
[366645531,1750362635621,-788.0,0.00024226,2]
[366645532,1750362635631,-5029.61244942,0.00024243,2]
[366645533,1750362635642,-5000.0,0.00024243,2]
[366645534,1750362635652,-5000.0,0.00024243,2]
[366645535,1750362635661,-5000.0,0.00024243,2]
[366645536,1750362635809,-5000.0,0.00024243,2]
[366645537,1750362635819,-394.31210505,0.00024245,10]
[366645538,1750362635828,-460.0,0.00024267,2]
[366645539,1750362635838,-420.0,0.00024267,2]
[366645540,1750362635848,-420.0,0.00024267,2]
[366645541,1750362635857,-5000.0,0.00024271,2]
[366645542,1750362635867,-5000.0,0.00024271,2]
[366645543,1750362635876,-5000.0,0.00024271,2]
[366645544,1750362635885,-5000.0,0.00024271,2]
[366645545,1750362635895,-260.05025566,0.00024274,3]
[366645546,1750362635904,-500.0,0.00024287,2]
[366645547,1750362635914,-201.0,0.0002429,10]
[366645548,1750362635924,-5020.69256955,0.00024296,2]
[366645549,1750362635933,-5000.0,0.00024296,2]
[366645550,1750362635942,-5000.0,0.00024296,2]
[366645551,1750362635951,-5000.0,0.00024296,2]
[366645552,1750362635960,-5000.0,0.00024296,2]
[366645553,1750362635970,-945.31234579,0.00024299,2]
[366645554,1750362635980,-44709.08865108,0.00024321,3]
[366645555,1750362635989,-1156.9105454,0.00024329,2]
[366645556,1750362635998,-158.9019424,0.00024329,2]
[366645557,1750362636007,-394.31210505,0.00024348,11]
[366645558,1750362636017,-419.54348952,0.00024383,6]
[366645559,1750362636026,-700.0,0.00024412,2]
[366645560,1750362636035,-500.0,0.00024416,2]
[366645561,1750362636044,-246.34498256,0.00024418,2]
[366645562,1750362636053,-500.0,0.00024439,2]
[366645563,1750362636063,-394.31210505,0.00024452,11]
[366645564,1750362636073,-5000.0,0.00024462,2]
[366645565,1750362636082,-5000.0,0.00024462,2]
[366645566,1750362636091,-5000.0,0.00024462,2]
[366645567,1750362636100,-5000.0,0.00024462,2]
[366645568,1750362636109,-700.0,0.0002449,2]
[366645569,1750362636118,-1000.32540235,0.000245,30]
[366645570,1750362636127,-400.0,0.000245,2]
[366645571,1750362636138,-2000.0,0.000245,14]
[366645572,1750362636147,-150.0,0.000245,2]
[366645573,1750362636157,-168.0,0.00024508,2]
[366645574,1750362636167,-1000.0,0.00024521,2]
[366645575,1750362636177,-1000.0,0.00024521,2]
[366645576,1750362636186,-1000.0,0.00024521,2]
[366645577,1750362636195,-655.82829724,0.00024521,2]
[366645578,1750362636205,-1000.0,0.00024521,2]
[366645579,1750362636214,-1000.0,0.00024521,2]
[366645580,1750362636223,-1000.0,0.00024521,2]
[366645581,1750362636232,-1000.0,0.00024521,2]
[366645582,1750362636242,-500.0,0.00024522,2]
[366645583,1750362636251,-5067.4040641,0.00024523,2]
[366645584,1750362636260,-5000.0,0.00024523,2]
[366645585,1750362636270,-5000.0,0.00024523,2]
[366645586,1750362636279,-5000.0,0.00024523,2]
[366645587,1750362636289,-5000.0,0.00024523,2]
[366645588,1750362636298,-168.0,0.0002453,2]
[366645589,1750362636308,-460.0,0.00024541,2]
[366645590,1750362636317,-500.0,0.00024541,2]
[366645591,1750362636327,-394.31210505,0.00024555,11]
[366645592,1750362636336,-500.0,0.00024573,2]
[366645593,1750362636346,-700.0,0.00024586,2]
[366645594,1750362636355,-4521.85673019,0.00024598,2]
[366645595,1750362636364,-668.3,0.000246,7]
[366645596,1750362636375,-500.0,0.0002461,2]
[366645597,1750362636385,-3365.21881979,0.00024645,7]
[366645598,1750362636395,-476.65807402,0.0002465,2]
[366645599,1750362636404,-300.0,0.00024657,4]
[366645600,1750362636413,-300.0,0.00024657,4]
[366645601,1750362636423,-302.45067569,0.00024657,4]
[366645602,1750362636432,-224.0,0.00024658,30]
[366645603,1750362636441,-1000.0,0.00024658,2]
[366645604,1750362636451,-1000.0,0.00024658,2]
[366645605,1750362636460,-1000.0,0.00024658,2]
[366645606,1750362636469,-1000.0,0.00024658,2]
[366645607,1750362636478,-1000.0,0.00024658,2]
[366645608,1750362636487,-1000.0,0.00024658,2]
[366645609,1750362636502,-1000.0,0.00024658,2]
[366645610,1750362636511,-1000.0,0.00024658,2]
[366645611,1750362636520,-1000.0,0.00024658,2]
[366645612,1750362636530,-476.77879695,0.00024658,2]
[366645613,1750362636541,-1000.0,0.00024658,2]
[366645614,1750362636551,-280.0,0.00024658,2]
[366645615,1750362636561,-1000.0,0.00024658,2]
[366645616,1750362636571,-1000.0,0.00024658,2]
[366645617,1750362636582,-474.0,0.00024658,2]
[366645618,1750362636592,-394.31210505,0.00024659,11]
[366645619,1750362636601,-154.9585912,0.00024662,2]
[366645620,1750362636610,-804.71651119,0.00024677,7]
[366645621,1750362636620,-474.0,0.00024685,2]
[366645622,1750362636629,-12544.68530873,0.000247,3]
[366645623,1750362636642,-836.1357872,0.000247,3]
[366645624,1750362636651,-424.78309573,0.000247,3]
[366645625,1750362636660,-160.0,0.000247,3]
[366645626,1750362636670,-474.0,0.00024713,2]
[366645627,1750362636680,-500.0,0.00024729,2]
[366645628,1750362636690,-474.0,0.0002474,2]
[366645629,1750362636701,-246.34498256,0.00024741,2]
[366645630,1750362636716,-500.0,0.00024747,2]
[366645631,1750362636727,-700.0,0.0002476,2]
[366645632,1750362636737,-394.31210505,0.00024762,11]
[366645633,1750362636746,-474.0,0.00024768,2]
[366645634,1750362636755,-500.0,0.00024773,2]
[366645635,1750362636764,-502.37827813,0.00024773,2]
[366645636,1750362636774,-500.0,0.00024773,2]
[366645637,1750362636785,-500.0,0.00024773,2]
[366645638,1750362636795,-500.0,0.00024773,2]
[366645639,1750362636804,-167.13842349,0.00024773,2]
[366645640,1750362636814,-500.0,0.00024773,2]
[366645641,1750362636823,-600.0,0.00024773,2]
[366645642,1750362636833,-500.0,0.00024773,2]
[366645643,1750362636843,-516.64030923,0.00024773,2]
[366645644,1750362636852,-503.18318133,0.00024773,2]
[366645645,1750362636861,-500.0,0.00024773,2]
[366645646,1750362636871,-150.91223692,0.00024773,2]
[366645647,1750362636880,-500.0,0.00024773,2]
[366645648,1750362636889,-500.0,0.00024773,2]
[366645649,1750362636898,-381.15923323,0.00024773,2]
[366645650,1750362636908,-500.0,0.00024773,2]
[366645651,1750362636917,-506.87102913,0.00024773,2]
[366645652,1750362636927,-500.52498777,0.00024773,2]
[366645653,1750362636936,-500.0,0.00024773,2]
[366645654,1750362636945,-491.86024123,0.00024773,2]
[366645655,1750362636955,-503.41899336,0.00024773,2]
[366645656,1750362636964,-500.0,0.00024773,2]
[366645657,1750362636974,-500.0,0.00024773,2]
[366645658,1750362636983,-441.07376333,0.00024773,2]
[366645659,1750362636993,-500.0,0.00024773,2]
[366645660,1750362637002,-500.0,0.00024773,2]
[366645661,1750362637011,-500.0,0.00024773,2]
[366645662,1750362637020,-500.0,0.00024773,2]
[366645663,1750362637030,-500.0,0.00024773,2]
[366645664,1750362637039,-500.0,0.00024773,2]
[366645665,1750362637048,-500.0,0.00024773,2]
[366645666,1750362637056,-500.0,0.00024781,2]
[366645667,1750362637065,-788.0,0.00024785,2]
[366645668,1750362637075,-500.0,0.00024791,2]
[366645669,1750362637084,-474.0,0.00024795,2]
[366645670,1750362637094,-3333.44419602,0.000248,15]
[366645671,1750362637103,-31158.612128,0.000248,2]
[366645672,1750362637112,-8015.89323691,0.000248,2]
[366645799,1750362757803,203.0,0.00019288,3]
[366645801,1750363074931,178.0,0.00017096,3]
[366645802,1750363241113,5000.0,0.000202,2]
[366645803,1750363392461,165.0,0.00017068,3]
[366645805,1750363709445,162.0,0.00017068,3]
[366645807,1750363778716,290.601174,0.00013699,2]
[366645808,1750363778964,290.601174,0.00020187,2]
[366645833,1750363831980,-5000.0,0.00020546,2]
[366645835,1750363831990,-500.0,0.00020964,2]
[366645837,1750363831999,-328.0,0.00021201,2]
[366645839,1750363832009,-3244.7842018,0.00021202,2]
[366645841,1750363832019,-179.068301,0.00021239,2]
[366645843,1750363832029,-206.54443615,0.000219,6]
[366645845,1750363832039,-206.54443597,0.000221,6]
[366645847,1750363832048,-300.0,0.00022197,2]
[366645849,1750363832058,-300.0,0.00022197,2]
[366645851,1750363832067,-300.0,0.00022198,2]
[366645853,1750363832077,-3000.0,0.000222,2]
[366645854,1750363832086,-1581.74111239,0.0002221,2]
[366645924,1750363840157,-1418.25888761,0.0002221,2]
[366645925,1750363840167,-500.0,0.00022219,2]
[366645926,1750363840177,-460.0,0.00022219,2]
[366645927,1750363840186,-148.99804919,0.0002222,2]
[366645951,1750363846046,-1503.14143,0.0002222,2]
[366645952,1750363846058,-1347.86052081,0.0002222,2]
[366645953,1750363846067,-1666.74677856,0.0002223,2]
[366645954,1750363846079,-1333.25322144,0.0002223,2]
[366645955,1750363846223,-3000.0,0.0002224,2]
[366645956,1750363846233,-921.53308056,0.0002225,2]
[366645958,1750364407957,5000.0,0.000202,2]
[366645960,1750364738100,261.541056,0.00013699,2]
[366645961,1750364738312,261.541056,0.00020187,2]
[366645963,1750364797460,2260.81626665,0.000202,2]
[366645966,1750364909459,792.94556754,0.0002,2]
[366646008,1750365032280,-500.0,0.00020964,2]
[366646010,1750365032290,-3207.16837268,0.00021,2]
[366646012,1750365032300,-179.068301,0.00021294,2]
[366646014,1750365032309,-300.0,0.00021999,2]
[366646015,1750365032319,-300.0,0.00021999,2]
[366646017,1750365032328,-300.0,0.00021999,2]
[366646020,1750365032338,-10777.75194167,0.00022,2]
[366646022,1750365032348,-460.0,0.00022133,2]
[366646025,1750365032357,-568.79477582,0.00022134,2]
[366646389,1750365973851,235.38695,0.00013699,2]
[366646390,1750365974055,235.38695,0.00020187,2]
[366646392,1750365988006,359.02221334,0.000202,2]
[366646597,1750366238288,-179.068301,0.00021194,2]
[366646599,1750366238298,-269.16885482,0.00022034,2]
[366646601,1750366238308,-211.76284418,0.00022132,2]
[366646612,1750366238397,-88.23715582,0.00022132,2]
[366646614,1750366238406,-427.6461026,0.00022133,2]
[366646616,1750366238416,-300.0,0.00022133,2]
[366646618,1750366238425,-1200.0,0.00022133,2]
[366646619,1750366238434,-460.0,0.00022133,2]
[366646622,1750366238444,-8731.60496571,0.00022134,2]
[366646624,1750366238453,-2569.58398698,0.00022134,2]
[366646626,1750366238462,-37779.06720771,0.00022134,2]
[366646627,1750366238472,-345.053,0.00022134,2]
[366646630,1750366238481,-2078.46691944,0.0002225,2]
[366646632,1750366238491,-3000.0,0.0002226,2]
[366646633,1750366238500,-3000.0,0.0002227,2]
[366646635,1750366238510,-3000.0,0.0002228,2]
[366646638,1750366238519,-3000.0,0.0002229,2]
[366646639,1750366238530,-3000.0,0.000223,2]
[366646641,1750366238539,-3000.0,0.0002231,2]
[366646644,1750366238549,-500.0,0.00022316,2]
[366646645,1750366238558,-500.0,0.00022316,2]
[366646648,1750366238568,-500.0,0.00022316,2]
[366646649,1750366238577,-500.0,0.00022316,2]
[366646651,1750366238586,-500.0,0.00022316,2]
[366646653,1750366238595,-500.0,0.00022316,2]
[366646655,1750366238605,-410.82347272,0.00022316,2]
[366646657,1750366238614,-500.0,0.00022316,2]
[366646659,1750366238623,-500.0,0.00022316,2]
[366646661,1750366238633,-500.0,0.00022316,2]
[366646663,1750366238642,-500.0,0.00022316,2]
[366646665,1750366238651,-500.0,0.00022316,2]
[366646667,1750366238660,-500.0,0.00022316,2]
[366646669,1750366238671,-500.0,0.00022316,2]
[366646671,1750366238681,-500.0,0.00022316,2]
[366646673,1750366238689,-500.0,0.00022316,2]
[366646675,1750366238698,-500.0,0.00022316,2]
[366646677,1750366238707,-500.0,0.00022316,2]
[366646679,1750366238716,-500.0,0.00022316,2]
[366646681,1750366238726,-3000.0,0.0002232,2]
[366646683,1750366238735,-3000.0,0.0002233,2]
[366646684,1750366238745,-4111.70057,0.0002234,2]
[366646686,1750366238754,-460.0,0.00022407,2]
[366646688,1750366238764,-500.0,0.00022414,2]
[366646690,1750366238774,-399.34017267,0.0002244,2]
[366646691,1750366238783,-269.16885478,0.00022465,2]
[366646694,1750366238793,-460.0,0.00022681,2]
[366646696,1750366238802,-661.74,0.000227,2]
[366646698,1750366238812,-187.17,0.00022786,10]
[366646700,1750366238821,-160.0,0.00022795,2]
[366646701,1750366238831,-207.4,0.00022796,2]
[366646703,1750366238840,-500.0,0.00022796,2]
[366646705,1750366238850,-500.0,0.00022796,2]
[366646707,1750366238859,-500.0,0.00022796,2]
[366646710,1750366238870,-288.1465802,0.00022796,2]
[366646712,1750366238880,-500.0,0.00022889,2]
[366646713,1750366238890,-269.16885478,0.00022896,2]
[366646715,1750366238900,-460.0,0.00022955,2]
[366646717,1750366238909,-1000.0,0.00022962,2]
[366646720,1750366238918,-370.64,0.0002311,2]
[366646721,1750366238928,-500.0,0.00023228,2]
[366646722,1750366238938,-460.0,0.00023229,2]
[366646723,1750366238948,-500.0,0.00023248,2]
[366646724,1750366238958,-500.0,0.00023277,2]
[366646725,1750366238967,-500.0,0.00023302,2]
[366646726,1750366238977,-269.16885478,0.00023327,2]
[366646727,1750366238986,-500.0,0.00023342,2]
[366646728,1750366238996,-168.0,0.00023359,2]
[366646729,1750366239005,-500.0,0.00023437,2]
[366646730,1750366239015,-460.0,0.00023503,2]
[366646731,1750366239025,-1500.0,0.0002351,2]
[366646732,1750366239035,-500.0,0.00023551,2]
[366646733,1750366239045,-500.0,0.00023569,2]
[366646734,1750366239055,-2200.0,0.00023577,2]
[366646735,1750366239064,-994.33,0.0002359,3]
[366646736,1750366239074,-497.17,0.0002359,3]
[366646737,1750366239083,-248.58,0.0002359,3]
[366646738,1750366239092,-745.77,0.0002359,3]
[366646739,1750366239102,-60131.8054055,0.000236,2]
[366646740,1750366239112,-41346.19945634,0.00023687,2]
[366646742,1750366239121,-500.0,0.000237,2]
[366646743,1750366239131,-500.0,0.00023701,2]
[366646744,1750366239140,-269.16885478,0.00023757,2]
[366646745,1750366239150,-500.0,0.00023771,2]
[366646746,1750366239159,-500.0,0.00023773,2]
[366646747,1750366239168,-500.0,0.00023773,2]
[366646749,1750366239179,-500.0,0.00023773,2]
[366646751,1750366239188,-500.0,0.00023773,2]
[366646753,1750366239200,-500.0,0.00023773,2]
[366646755,1750366239210,-460.0,0.00023777,2]
[366646757,1750366239220,-135235.9412712,0.00023788,2]
[366646759,1750366239231,-260964.68269966,0.000238,2]
[366646761,1750366239241,-59298.84700146,0.0002389,2]
[366646763,1750366239251,-500.0,0.0002389,3]
[366646765,1750366239260,-1029.2,0.000239,2]
[366646767,1750366239270,-2000.0,0.000239,2]
[366646769,1750366239280,-732.15509835,0.000239,10]
[366646771,1750366239290,-732.15509829,0.00023969,10]
[366646773,1750366239298,-500.0,0.00023973,2]
[366646775,1750366239308,-500.0,0.00023973,2]
[366646776,1750366239317,-503.34321714,0.00023973,2]
[366646779,1750366239327,-12500.0,0.00023973,3]
[366646781,1750366239337,-425.1149272,0.0002399,2]
[366646783,1750366239346,-76654.33646717,0.00024,30]
[366646784,1750366239355,-26938.7805974,0.00024,4]
[366646786,1750366239364,-32450.39091915,0.00024,3]
[366646789,1750366239374,-151.0,0.00024,7]
[366646790,1750366239383,-732.15509829,0.00024038,10]
[366646791,1750366239392,-783.84,0.00024044,2]
[366646792,1750366239401,-420.0,0.00024047,2]
[366646794,1750366239411,-420.0,0.00024048,2]
[366646796,1750366239421,-460.0,0.00024051,2]
[366646798,1750366239430,-1000.0,0.00024058,2]
[366646799,1750366239439,-500.0,0.00024082,2]
[366646801,1750366239449,-500.0,0.0002409,2]
[366646803,1750366239458,-732.15509829,0.00024107,10]
[366646805,1750366239467,-500.0,0.0002415,2]
[366646807,1750366239476,-500.0,0.0002415,2]
[366646809,1750366239485,-500.0,0.0002415,2]
[366646811,1750366239496,-215.0738,0.00024165,2]
[366646812,1750366239509,-160.0,0.00024165,2]
[366646814,1750366239520,-732.15509829,0.00024176,10]
[366646816,1750366239532,-269.16885478,0.00024188,2]
[366646819,1750366239543,-732.15509829,0.00024245,10]
[366646821,1750366239555,-500.0,0.0002426,2]
[366646823,1750366239566,-899.394607,0.00024303,3]
[366646825,1750366239576,-732.15509829,0.00024314,10]
[366646827,1750366239586,-1000.0,0.00024321,2]
[366646829,1750366239596,-1000.0,0.00024321,2]
[366646831,1750366239608,-1000.0,0.00024321,2]
[366646833,1750366239620,-1000.0,0.00024321,2]
[366646835,1750366239631,-1000.0,0.00024321,2]
[366646836,1750366239643,-460.0,0.00024325,2]
[366646839,1750366239657,-732.15509829,0.00024383,11]
[366646841,1750366239668,-168.0,0.00024433,2]
[366646843,1750366239680,-196.90339151,0.00024438,4]
[366646845,1750366239691,-732.15509829,0.00024452,11]
[366646847,1750366239702,-168.0,0.00024458,2]
[366646850,1750366239712,-1012.94910348,0.00024521,2]
[366646852,1750366239723,-166.06753623,0.00024521,2]
[366646854,1750366239735,-732.15509829,0.00024521,11]
[366646856,1750366239746,-500.0,0.00024525,2]
[366646859,1750366239757,-168.0,0.00024534,2]
[366646861,1750366239769,-803.0340376,0.00024539,2]
[366646863,1750366239779,-168.0,0.00024583,2]
[366646865,1750366239793,-732.15509829,0.0002459,11]
[366646867,1750366239805,-85850.87726236,0.00024598,2]
[366646870,1750366239816,-460.0,0.00024599,2]
[366646872,1750366239827,-168.0,0.00024607,2]
[366646874,1750366239839,-269.16885478,0.00024619,2]
[366646876,1750366239850,-21922.03564797,0.0002465,2]
[366646878,1750366239861,-461.14812878,0.00024658,2]
[366646880,1750366239872,-732.15509829,0.00024659,11]
[366646882,1750366239884,-151.0,0.000247,8]
[366646885,1750366239896,-732.15509829,0.00024728,11]
[366646887,1750366239907,-500.0,0.00024758,2]
[366646889,1750366239919,-150.0,0.00024773,2]
[366646891,1750366239931,-600.0,0.00024773,2]
[366646895,1750366239941,-603.65051825,0.00024773,2]
[366646898,1750366239952,-500.0,0.00024773,2]
[366646901,1750366239962,-500.0,0.00024773,2]
[366646904,1750366239972,-506.00183821,0.00024773,2]
[366646906,1750366239982,-500.0,0.00024773,2]
[366646908,1750366239992,-500.0,0.00024773,2]
[366646910,1750366240003,-12893.98247969,0.00024774,2]
[366646913,1750366240014,-151.0,0.00024774,7]
[366646917,1750366240024,-500.0,0.00024795,2]
[366646920,1750366240038,-732.15509829,0.00024797,11]
[366646924,1750366240049,-50900.41374614,0.000248,7]
[366647119,1750366984191,211.848255,0.00013699,2]
[366647120,1750366984395,211.848255,0.00020187,2]
[366647133,1750367432534,-150.0,0.000222,2]
[366647134,1750367432544,-595.56,0.000228,2]
[366647135,1750367432553,-160.0,0.00022889,2]
[366647136,1750367432562,-179.068301,0.00022967,2]
[366647137,1750367432571,-2015.31353648,0.00023741,2]
[366647634,1750367443612,-184.68646352,0.00023741,2]
[366647636,1750367443621,-500.0,0.00023826,2]
[366647638,1750367443630,-500.0,0.00023901,9]
[366647640,1750367443639,-300.0,0.00023999,2]
[366647642,1750367443649,-10012.82842411,0.00024,7]
[366647643,1750367443657,-207.4,0.00024046,2]
[366647645,1750367443666,-693.12809125,0.0002406,2]
[366647647,1750367443676,-3099.94183748,0.0002406,2]
[366647649,1750367443685,-773.86,0.0002407,2]
[366647651,1750367443695,-300.0,0.00024125,2]
[366647653,1750367443704,-460.0,0.00024138,2]
[366647655,1750367443713,-5000.0,0.00024153,2]
[366647657,1750367443722,-770.909663,0.00024299,3]
[366647659,1750367443731,-460.0,0.00024412,2]
[366647661,1750367443740,-907.99160626,0.00024485,2]
[366647663,1750367443749,-461.14812878,0.00024658,2]
[366647665,1750367443758,-460.0,0.00024686,2]
[366647667,1750367443767,-155.97,0.0002479,10]
[366647669,1750367443776,-779.9,0.0002479,10]
[366647670,1750367443785,-311.721,0.00024798,8]
[366647672,1750367443794,-500.0,0.00024799,2]
[366647674,1750367443803,-500.0,0.00024799,2]
[366647676,1750367443812,-500.0,0.00024799,2]
[366647678,1750367443821,-487.5764309,0.00024799,2]
[366647680,1750367443834,-500.0,0.00024799,2]
[366647682,1750367443843,-500.0,0.00024799,2]
[366647684,1750367443853,-500.0,0.00024799,2]
[366647686,1750367443862,-500.0,0.00024799,2]
[366647688,1750367443871,-460.567933,0.00024799,2]
[366647690,1750367443881,-500.0,0.00024799,2]
[366647692,1750367443890,-500.0,0.00024799,2]
[366647694,1750367443901,-500.0,0.00024799,2]
[366647696,1750367443911,-500.0,0.00024799,2]
[366647698,1750367443920,-500.0,0.00024799,2]
[366647700,1750367443929,-500.0,0.00024799,2]
[366647701,1750367443938,-500.0,0.00024799,2]
[366647703,1750367443948,-500.0,0.00024799,2]
[366647705,1750367443957,-500.0,0.00024799,2]
[366647707,1750367443966,-500.0,0.00024799,2]
[366647709,1750367443978,-500.0,0.00024799,2]
[366647711,1750367443987,-500.0,0.00024799,2]
[366647713,1750367443997,-500.0,0.00024799,2]
[366647715,1750367444006,-500.0,0.00024799,2]
[366647717,1750367444015,-200.0,0.00024799,2]
[366647719,1750367444025,-500.0,0.00024799,2]